bitfinex/quotes_SOLUSD_20220208
["timestamp","ask_amount","ask_price","bid_price","bid_amount"]
[1644315725602,2.14617346,113.52,113.42,62.29225]
[1644315725807,15.32785549,113.52,113.42,62.29225]
[1644315726102,15.36627346,113.52,113.42,62.29225]
[1644315726304,27.64685549,113.52,113.42,6.48315]
[1644315726516,4.406,113.51,113.42,6.48315]
[1644315726706,12.72,113.5,113.37,78.8917]
[1644315726905,17.6325,113.49,113.38,31.44203]
[1644315727205,19.74025549,113.49,113.38,31.44203]
[1644315727609,17.6325,113.49,113.38,31.44203]
[1644315727808,13.2255,113.49,113.38,31.44203]
[1644315728005,13.2255,113.49,113.39,2.01321361]
[1644315728213,13.2255,113.49,113.39,6.25]
[1644315728804,13.2255,113.49,113.38,43.6766]
[1644315729006,15.33325549,113.49,113.38,43.6766]
[1644315729207,15.33325549,113.49,113.38,37.6766]
[1644315730005,19.74025549,113.49,113.38,37.6766]
[1644315730408,19.74025549,113.49,113.38,44.16203]
[1644315730613,19.74025549,113.49,113.38,31.44203]
[1644315730808,20.05712912,113.49,113.38,31.44203]
[1644315731008,32.77712912,113.49,113.38,31.44203]
[1644315731207,4.407,113.48,113.38,31.44203]
[1644315731407,13.2285,113.45,113.38,6.48543]
[1644315732108,25.4515,113.45,113.38,6.48543]
[1644315732308,2.10775549,113.44,113.38,6.48543]
[1644315732508,13.2319,113.43,113.38,6.48543]
[1644315734613,13.2319,113.43,113.34,47.4125]
[1644315734810,13.2319,113.43,113.34,53.90022]
[1644315736112,13.2319,113.43,113.34,59.90022]
[1644315736312,13.2319,113.43,113.34,53.90022]
[1644315736513,17.6409,113.43,113.34,47.4125]
[1644315736714,17.6409,113.43,113.31,12.72]
[1644315737018,0.03841797,113.42,113.32,6.48887]
[1644315737213,13.2336,113.4,113.32,6.48887]
[1644315739016,13.2336,113.4,113.32,6.73887]
[1644315740218,13.2336,113.4,113.32,0.25]
[1644315740518,13.2336,113.4,113.31,18.97]
[1644315740719,1.2317929,113.42,113.32,28.0]
[1644315740921,0.0017929,113.42,113.33,197.87061361]
[1644315741220,0.03841797,113.43,113.35,159.06]
[1644315741419,0.03841797,113.47,113.36,36.7974]
[1644315741620,2.48695157,113.51,113.36,203.87061361]
[1644315741621,0.03841797,113.49,113.36,203.87061361]
[1644315741921,0.03841797,113.46,113.37,2.01321361]
[1644315742122,13.2223,113.5,113.37,2.01321361]
[1644315742123,0.03841797,113.48,113.38,12.72]
[1644315742323,0.03841797,113.49,113.38,73.8432]
[1644315742522,0.03841797,113.49,113.38,75.85641361]
[1644315742721,0.03841797,113.49,113.38,81.85641361]
[1644315744321,13.26071797,113.49,113.38,81.85641361]
[1644315744522,13.2223,113.49,113.38,81.85641361]
[1644315744726,13.2223,113.49,113.38,68.38411361]
[1644315744925,13.2223,113.49,113.38,60.3709]
[1644315745123,13.2223,113.49,113.38,47.6509]
[1644315745726,13.2223,113.49,113.35,25.63871361]
[1644315745923,13.2283,113.45,113.35,31.63871361]
[1644315746124,13.2283,113.45,113.35,44.35871361]
[1644315747157,13.2283,113.45,113.35,50.84586361]
[1644315747558,13.2283,113.45,113.35,44.60871361]
[1644315747963,13.2283,113.45,113.34,47.4983]
[1644315748154,13.2283,113.45,113.34,47.7483]
[1644315748355,13.26671797,113.45,113.34,47.7483]
[1644315748553,13.26671797,113.45,113.31,2.01321361]
[1644315748754,13.2352,113.41,113.31,12.72]
[1644315748954,23.0302,113.41,113.31,12.72]
[1644315750555,42.26795549,113.41,113.27,138.1986]
[1644315750757,4.41,113.4,113.27,125.4786]
[1644315750960,13.24,113.37,113.27,125.4786]
[1644315751360,13.24,113.37,113.27,48.3642]
[1644315751560,15.34775549,113.37,113.27,48.3642]
[1644315751766,15.34775549,113.37,113.26,12.72]
[1644315753061,19.75975549,113.37,113.26,12.72]
[1644315753663,17.652,113.37,113.26,12.72]
[1644315753862,13.24,113.37,113.27,2.01321361]
[1644315754063,13.24,113.37,113.27,20.73321361]
[1644315754262,13.24,113.37,113.27,18.72]
[1644315754468,13.24,113.37,113.27,18.97]
[1644315754663,13.24,113.37,113.27,18.72]
[1644315755067,13.24,113.37,113.27,20.98321361]
[1644315755367,13.24,113.37,113.27,18.97]
[1644315755770,13.24,113.37,113.28,2.01321361]
[1644315755966,13.24,113.37,113.27,6.25]
[1644315756165,13.24,113.37,113.28,12.72]
[1644315756567,13.24,113.37,113.28,14.98321361]
[1644315758867,13.24,113.37,113.28,28.21851361]
[1644315759068,13.24,113.37,113.28,34.21851361]
[1644315760672,13.2348,113.39,113.29,2.01321361]
[1644315760872,13.2348,113.39,113.29,27.96761361]
[1644315761073,2.48695157,113.42,113.29,34.21761361]
[1644315761372,0.03841797,113.45,113.3,167.56322361]
[1644315761571,13.2265,113.46,113.3,10.90001]
[1644315761774,181.91420164,113.44,113.24,13.5266]
[1644315761975,161.54695157,113.42,113.2,47.4985]
[1644315762173,44.1301,113.38,113.21,12.72]
[1644315762374,17.133,113.37,113.21,35.02080819]
[1644315762573,35.73807097,113.37,113.21,35.02080819]
[1644315762775,70.5813947,113.37,113.22,22.30080819]
[1644315762975,19.49646824,113.36,113.22,58.31420819]
[1644315763181,76.35576824,113.36,113.22,64.31420819]
[1644315763374,76.35576824,113.36,113.22,64.56420819]
[1644315763574,76.35576824,113.36,113.22,42.2634]
[1644315763774,78.46352373,113.36,113.22,42.2634]
[1644315764675,13.2418,113.33,113.22,42.2634]
[1644315765978,46.24705549,113.36,113.22,55.5042]
[1644315766178,14.82775549,113.38,113.22,66.7102]
[1644315766378,12.72,113.41,113.23,190.9265769]
[1644315766578,12.72,113.41,113.24,113.9112]
[1644315766786,12.72,113.41,113.25,6.49288]
[1644315766979,12.72,113.41,113.26,23.8315]
[1644315767181,12.72,113.41,113.27,6.49173]
[1644315767579,12.72,113.41,113.27,6.25]
[1644315767782,25.9525,113.41,113.28,13.2325]
[1644315768085,25.9525,113.41,113.29,49.3445]
[1644315768281,25.9525,113.41,113.29,49.5945]
[1644315768881,25.9525,113.41,113.29,62.8271]
[1644315769584,28.06025549,113.41,113.29,68.8271]
[1644315769786,25.9525,113.41,113.29,73.1781]
[1644315769986,25.9525,113.41,113.29,79.1781]
[1644315770787,28.06025549,113.41,113.29,79.1781]
[1644315772388,25.9525,113.41,113.29,79.1781]
[1644315772593,25.9525,113.41,113.3,2.01321361]
[1644315772791,25.9525,113.41,113.3,13.4811]
[1644315773000,25.9525,113.41,113.3,19.4811]
[1644315774301,25.9525,113.41,113.29,62.5255]
[1644315774505,28.06025549,113.41,113.29,68.7755]
[1644315774902,25.9525,113.41,113.29,68.7755]
[1644315775402,25.9525,113.41,113.29,68.5255]
[1644315776602,25.9525,113.41,113.3,2.01321361]
[1644315776804,25.9504,113.43,113.3,14.98321361]
[1644315777005,25.9504,113.43,113.31,23.6855]
[1644315777207,25.9504,113.43,113.31,23.9355]
[1644315778706,25.9504,113.43,113.31,37.1661]
[1644315781409,25.9504,113.43,113.31,23.6855]
[1644315781609,25.9504,113.43,113.31,23.9355]
[1644315784718,25.9504,113.43,113.31,37.1664]
[1644315785316,25.9504,113.43,113.31,36.9164]
[1644315786820,2.52536954,113.44,113.32,12.72]
[1644315787019,0.03841797,113.44,113.35,13.2258]
[1644315787218,0.03841797,113.47,113.36,23.2619]
[1644315787419,0.03841797,113.48,113.37,23.3202]
[1644315787619,0.03841797,113.46,113.37,29.3202]
[1644315787818,0.03841797,113.48,113.37,29.5702]
[1644315788018,13.2248,113.47,113.38,24.8607]
[1644315788218,13.2248,113.47,113.38,25.1107]
[1644315788625,13.2248,113.47,113.38,31.1107]
[1644315789521,13.2248,113.47,113.38,25.1107]
[1644315789822,13.2248,113.47,113.38,24.8607]
[1644315789823,14.82775549,113.46,113.38,24.8607]
[1644315790022,13.2283,113.44,113.37,23.3202]
[1644315794532,13.26531797,113.46,113.37,25.58336474]
[1644315794727,0.03841797,113.47,113.37,31.58336474]
[1644315794927,0.03841797,113.48,113.38,23.2314]
[1644315795128,12.75841797,113.49,113.38,23.2314]
[1644315795327,12.75841797,113.49,113.38,25.24456474]
[1644315795727,13.2246,113.48,113.38,25.24456474]
[1644315796728,13.2246,113.48,113.38,25.49456474]
[1644315797227,13.2246,113.48,113.38,31.49456474]
[1644315797628,13.2246,113.48,113.38,25.49456474]
[1644315799528,13.2246,113.48,113.38,2.01316474]
[1644315799529,12.72,113.47,113.38,2.01316474]
[1644315799730,13.2297,113.44,113.34,55.36776474]
[1644315799931,21.2367,113.44,113.34,53.3546]
[1644315800329,21.27511797,113.44,113.34,53.3546]
[1644315800529,23.38287346,113.44,113.34,53.3546]
[1644315800931,23.38287346,113.44,113.34,48.9466]
[1644315801137,12.72,113.43,113.34,48.9466]
[1644315801332,13.2324,113.41,113.34,48.9466]
[1644315801531,13.2324,113.41,113.3,46.0829]
[1644315801733,13.2324,113.41,113.3,59.1515]
[1644315803341,12.72,113.4,113.3,59.1515]
[1644315803538,13.2351,113.38,113.3,59.1515]
[1644315804239,44.15221797,113.42,113.3,61.41466474]
[1644315804442,0.03841797,113.42,113.3,73.90467474]
[1644315804638,12.75841797,113.44,113.3,73.90467474]
[1644315804838,0.03841797,113.42,113.3,73.90467474]
[1644315805037,0.03841797,113.43,113.3,73.90467474]
[1644315805838,13.2312,113.41,113.3,87.13757474]
[1644315806438,0.03841797,113.43,113.3,87.13757474]
[1644315806860,0.03841797,113.43,113.3,99.85757474]
[1644315807263,0.03841797,113.45,113.31,4.41]
[1644315807463,13.2289,113.43,113.34,13.2279]
[1644315807863,13.2289,113.43,113.34,15.49623394]
[1644315810266,13.2289,113.43,113.34,21.49623394]
[1644315811676,13.2289,113.43,113.34,6.0]
[1644315811875,25.7639,113.43,113.33,24.5465]
[1644315812071,25.80231797,113.43,113.31,6.48944]
[1644315812273,12.75841797,113.42,113.3,35.7026]
[1644315812471,13.2343,113.39,113.3,35.7026]
[1644315813472,13.2343,113.39,113.3,35.9526]
[1644315815572,13.232,113.41,113.31,13.232]
[1644315815774,0.03841797,113.42,113.31,39.47113394]
[1644315816077,12.75841797,113.44,113.32,2.01833394]
[1644315816275,12.72,113.44,113.31,24.2208]
[1644315816475,2.10775549,113.43,113.31,24.2208]
[1644315816676,12.72,113.42,113.31,30.2208]
[1644315816876,12.75841797,113.42,113.31,32.23913394]
[1644315817077,12.72,113.42,113.31,32.23913394]
[1644315817276,25.9502,113.42,113.31,45.47103394]
[1644315817479,25.98861797,113.42,113.31,45.47103394]
[1644315818883,25.98861797,113.42,113.31,45.22103394]
[1644315820183,25.98861797,113.42,113.31,45.47103394]
[1644315820382,25.9502,113.42,113.31,45.47103394]
[1644315820683,0.03841797,113.44,113.31,58.19103394]
[1644315820984,13.2286,113.43,113.31,58.19103394]
[1644315821183,0.03841797,113.42,113.31,58.19103394]
[1644315823985,0.03841797,113.42,113.32,22.33428838]
[1644315824185,13.2286,113.43,113.35,13.2278]
[1644315824386,0.03841797,113.42,113.35,13.2278]
[1644315824585,13.2286,113.43,113.35,19.4778]
[1644315824784,13.2286,113.43,113.35,21.49613394]
[1644315828292,13.2286,113.43,113.35,34.72993394]
[1644315839627,13.2286,113.43,113.35,32.7116]
[1644315840026,13.2286,113.43,113.35,19.4838]
[1644315840226,13.2286,113.43,113.34,36.3797]
[1644315840426,13.2286,113.43,113.34,23.1501]
[1644315840626,25.9486,113.43,113.34,23.1501]
[1644315843728,25.9486,113.43,113.33,23.3751]
[1644315843929,30.39601797,113.43,113.33,23.3751]
[1644315844932,25.98701797,113.43,113.33,23.3751]
[1644315846334,25.98701797,113.43,113.33,36.609]
[1644315848336,25.98701797,113.43,113.34,2.01392381]
[1644315848538,25.98701797,113.43,113.35,13.2315]
[1644315848938,12.75841797,113.43,113.35,13.2315]
[1644315849141,12.75841797,113.43,113.35,13.4815]
[1644315849340,12.75841797,113.43,113.35,19.4815]
[1644315849543,12.72,113.43,113.35,19.4815]
[1644315849943,12.72,113.43,113.35,13.4815]
[1644315850741,25.9504,113.43,113.35,13.4815]
[1644315851142,12.72,113.43,113.36,2.01392381]
[1644315851342,0.03841797,113.45,113.36,2.26392381]
[1644315851542,62.97315157,113.46,113.37,13.2283]
[1644315851766,13.2281,113.45,113.37,13.2283]
[1644315852842,13.2281,113.45,113.36,37.3024]
[1644315853242,13.2281,113.45,113.36,37.5524]
[1644315854245,73.75121797,113.46,113.36,37.5524]
[1644315854445,0.03841797,113.46,113.36,57.23032381]
[1644315854845,0.03841797,113.47,113.36,57.23032381]
[1644315855049,0.03841797,113.49,113.37,22.35240136]
[1644315855247,0.03841797,113.46,113.4,13.2213]
[1644315855446,0.03841797,113.48,113.41,24.2264]
[1644315855646,13.222,113.5,113.41,30.2264]
[1644315855847,13.222,113.5,113.41,30.4764]
[1644315857249,13.25911797,113.51,113.42,13.2213]
[1644315857449,13.2207,113.51,113.42,13.2213]
[1644315857655,13.2207,113.51,113.42,19.4713]
[1644315860154,0.30268114,113.47,113.39,4.406]
[1644315860350,13.2275,113.45,113.35,23.139]
[1644315860556,13.2275,113.45,113.35,6.0]
[1644315860752,12.72,113.44,113.35,6.0]
[1644315860952,14.82775549,113.44,113.32,19.0591]
[1644315861152,58.96887346,113.44,113.34,13.2308]
[1644315861352,2.10775549,113.43,113.34,13.2308]
[1644315861555,13.2308,113.42,113.34,13.2308]
[1644315863054,13.2308,113.42,113.34,13.4808]
[1644315864357,13.2308,113.42,113.33,13.2327]
[1644315864555,2.10775549,113.41,113.33,13.2327]
[1644315864756,13.2334,113.39,113.33,13.2327]
[1644315867675,13.2334,113.39,113.33,13.4827]
[1644315869377,13.2334,113.39,113.33,13.2327]
[1644315873479,13.2334,113.39,113.32,22.674]
[1644315873480,13.2334,113.39,113.31,24.6282]
[1644315873679,13.2334,113.39,113.31,24.6042]
[1644315878381,13.2334,113.39,113.3,13.2595]
[1644315878783,13.2334,113.39,113.3,15.26864503]
[1644315879686,13.2334,113.39,113.3,15.51864503]
[1644315880487,13.2334,113.39,113.3,21.51864503]
[1644315880887,13.2334,113.39,113.3,15.51864503]
[1644315881386,13.2334,113.39,113.3,21.51864503]
[1644315884390,13.2334,113.39,113.3,15.51864503]
[1644315885494,13.2334,113.39,113.3,15.26864503]
[1644315885695,15.34115549,113.39,113.3,0.024]
[1644315885895,12.72,113.38,113.3,0.024]
[1644315886098,13.2407,113.36,113.28,0.024]
[1644315886395,25.9607,113.36,113.27,22.788]
[1644315886694,2.10775549,113.35,113.27,22.788]
[1644315886894,2.10775549,113.35,113.26,0.024]
[1644315887097,2.10775549,113.35,113.25,0.024]
[1644315887696,13.2418,113.33,113.26,22.37656946]
[1644315887998,13.2418,113.33,113.26,22.40056946]
[1644315888199,13.2418,113.33,113.26,22.37656946]
[1644315888500,13.2418,113.33,113.25,13.2653]
[1644315888697,13.2418,113.33,113.25,13.5153]
[1644315889098,13.2418,113.33,113.25,19.5153]
[1644315890399,13.2418,113.33,113.25,19.2653]
[1644315890602,13.2418,113.33,113.25,6.024]
[1644315890801,28.06955549,113.33,113.25,6.024]
[1644315891002,39.81355549,113.33,113.25,0.024]
[1644315891202,39.81355549,113.33,113.22,6.024]
[1644315891403,39.81355549,113.33,113.23,0.024]
[1644315891799,39.81355549,113.33,113.22,0.024]
[1644315893601,28.06955549,113.33,113.22,0.024]
[1644315895604,32.48355549,113.33,113.22,0.024]
[1644315896205,191.86366339,113.33,113.22,0.024]
[1644315896405,4.414,113.32,113.2,0.024]
[1644315896608,13.2497,113.29,113.2,0.024]
[1644315896804,25.9697,113.29,113.19,23.3107]
[1644315897005,2.10775549,113.28,113.19,0.024]
[1644315897204,12.72,113.27,113.18,22.9757]
[1644315897605,14.82775549,113.27,113.18,22.9997]
[1644315897804,13.252,113.26,113.18,22.9757]
[1644315898008,25.972,113.26,113.18,22.9757]
[1644315898409,28.07975549,113.26,113.16,0.024]
[1644315898808,0.32125186,113.25,113.16,0.024]
[1644315899006,13.257,113.23,113.13,0.024]
[1644315899209,12.72,113.22,113.13,0.024]
[1644315899408,14.82775549,113.22,113.13,0.024]
[1644315899606,14.82775549,113.22,113.12,59.9689]
[1644315900708,13.2559,113.21,113.12,59.9689]
[1644315900910,12.72,113.2,113.12,59.9689]
[1644315901308,12.72,113.2,113.12,46.7135]
[1644315902308,25.978,113.2,113.12,46.7135]
[1644315903309,12.72,113.2,113.12,59.9703]
[1644315903614,12.72,113.2,113.13,2.00914503]
[1644315903808,12.68321103,113.2,113.13,2.00914503]
[1644315904211,12.68321103,113.2,113.13,2.25914503]
[1644315904511,12.68321103,113.2,113.13,21.51464503]
[1644315904913,12.68321103,113.2,113.14,2.00914503]
[1644315905311,12.68321103,113.2,113.14,2.25914503]
[1644315905512,13.254,113.24,113.14,2.25914503]
[1644315905713,13.2515,113.26,113.14,38.09834503]
[1644315905913,25.9715,113.26,113.15,2.00914503]
[1644315906116,25.9715,113.26,113.15,8.03314503]
[1644315906311,25.9715,113.26,113.15,11.95697828]
[1644315906513,25.9715,113.26,113.16,22.5309]
[1644315906712,25.9715,113.26,113.16,36.0329]
[1644315909318,12.72,113.26,113.16,42.0329]
[1644315909519,12.72,113.26,113.16,36.0329]
[1644315909715,12.72,113.26,113.16,42.0329]
[1644315909921,12.72,113.26,113.16,36.0329]
[1644315910119,12.72,113.26,113.16,58.8277]
[1644315910318,12.72,113.26,113.16,60.8417662]
[1644315910518,12.72,113.26,113.16,66.8417662]
[1644315910717,25.9706,113.26,113.16,66.8417662]
[1644315910923,12.72,113.26,113.16,66.8417662]
[1644315913321,12.72,113.26,113.16,66.5917662]
[1644315913522,4.416,113.3,113.16,74.7837662]
[1644315913826,12.72,113.3,113.17,4.44]
[1644315914023,13.2478,113.29,113.2,13.2464]
[1644315914223,13.2478,113.29,113.2,25.0764]
[1644315914624,13.2478,113.29,113.2,25.1004]
[1644315914826,90.9942,113.32,113.2,27.3644662]
[1644315915025,12.72,113.34,113.21,22.9283]
[1644315915225,13.95074517,113.37,113.24,13.2405]
[1644315915423,1.23074517,113.39,113.25,45.975]
[1644315915639,1.23074517,113.39,113.26,17.156]
[1644315915839,12.72,113.4,113.26,17.406]
[1644315916041,13.2357,113.39,113.27,44.1169]
[1644315916247,13.2357,113.39,113.28,24.5103]
[1644315916444,25.9557,113.39,113.29,13.2351]
[1644315916639,25.9557,113.39,113.28,24.7603]
[1644315917943,25.9557,113.39,113.28,24.5103]
[1644315918142,25.9557,113.39,113.26,19.2637]
[1644315918343,4.412,113.38,113.26,13.5137]
[1644315918542,13.2408,113.35,113.26,19.2637]
[1644315918743,13.2408,113.35,113.26,41.9075]
[1644315919843,13.2408,113.35,113.26,42.1575]
[1644315921143,25.9583,113.37,113.26,42.1575]
[1644315921344,13.2383,113.37,113.26,42.1575]
[1644315922146,12.72,113.38,113.26,42.1575]
[1644315922345,12.72,113.38,113.26,44.1715662]
[1644315922746,13.2362,113.39,113.27,6.49173]
[1644315922946,13.2362,113.39,113.3,13.234]
[1644315923348,13.2362,113.39,113.3,13.484]
[1644315924350,13.2362,113.39,113.3,37.6364]
[1644315925050,13.2362,113.39,113.3,43.6364]
[1644315925252,37.3356,113.41,113.3,37.6364]
[1644315925451,37.3356,113.41,113.3,43.6364]
[1644315926051,13.2333,113.41,113.3,43.6364]
[1644315926554,17.68076036,113.43,113.31,14.7340662]
[1644315926756,0.03966036,113.42,113.34,13.2301]
[1644315927051,0.03966036,113.44,113.34,22.4731]
[1644315927252,0.03966036,113.45,113.34,22.7231]
[1644315927651,0.03966036,113.45,113.35,22.5736]
[1644315927852,13.2291,113.45,113.35,35.8018]
[1644315928052,13.2291,113.45,113.35,36.0518]
[1644315929258,13.2291,113.45,113.35,42.0518]
[1644315929857,13.2291,113.45,113.35,36.0518]
[1644315930056,13.2291,113.45,113.35,42.0518]
[1644315930661,13.2291,113.45,113.35,22.8236]
[1644315930861,13.2291,113.45,113.35,22.5736]
[1644315931061,13.2291,113.45,113.35,28.5736]
[1644315931260,13.2291,113.45,113.35,22.5736]
[1644315931864,17.6381,113.45,113.35,22.5736]
[1644315932062,17.6381,113.45,113.35,22.8236]
[1644315932862,13.2291,113.45,113.35,22.8236]
[1644315933665,0.30865466,113.42,113.27,6.49173]
[1644315933865,13.2371,113.38,113.26,0.024]
[1644315934065,12.72,113.37,113.24,0.024]
[1644315934264,0.30905564,113.35,113.24,0.024]
[1644315934467,17.133,113.34,113.24,0.024]
[1644315934765,14.82775549,113.34,113.24,0.024]
[1644315935365,28.07295549,113.34,113.24,0.024]
[1644315935766,25.9652,113.34,113.24,0.024]
[1644315937769,30.3782,113.34,113.24,0.024]
[1644315937968,13.2452,113.34,113.24,2.02798501]
[1644315938167,13.2452,113.34,113.24,8.02798501]
[1644315938368,25.959,113.36,113.24,8.27798501]
[1644315938567,25.959,113.36,113.25,0.024]
[1644315938967,25.959,113.36,113.25,2.02798501]
[1644315939169,25.959,113.36,113.26,0.024]
[1644315939369,44.1269,113.39,113.26,8.623]
[1644315939573,18.36074517,113.42,113.27,14.72398501]
[1644315939770,1.23074517,113.42,113.28,4.41]
[1644315939968,1.23074517,113.44,113.29,12.72]
[1644315940270,1.23074517,113.44,113.29,30.08698501]
[1644315940469,0.03966036,113.43,113.3,2.00398501]
[1644315940668,0.03966036,113.43,113.3,8.00398501]
[1644315940869,0.03966036,113.43,113.31,12.72]
[1644315941071,0.03966036,113.43,113.31,20.72398501]
[1644315941269,0.03966036,113.43,113.31,20.97398501]
[1644315941789,0.03966036,113.43,113.31,34.20518501]
[1644315944470,0.03966036,113.43,113.32,2.00398501]
[1644315944674,0.03966036,113.43,113.34,13.2286]
[1644315945076,13.2297,113.44,113.34,13.4786]
[1644315945274,13.26936036,113.44,113.34,13.4786]
[1644315946276,0.03966036,113.44,113.34,13.4786]
[1644315946476,1.23074517,113.45,113.34,13.4786]
[1644315946477,1.23074517,113.45,113.34,19.4786]
[1644315946678,0.03966036,113.44,113.34,19.4786]
[1644315946876,0.03966036,113.45,113.34,19.4786]
[1644315947077,0.03966036,113.45,113.35,6.48715]
[1644315947278,0.03966036,113.46,113.38,13.2236]
[1644315947477,1.23074517,113.48,113.38,13.2236]
[1644315947676,14.45554517,113.48,113.38,0.25]
[1644315948876,1.23074517,113.47,113.36,43.4514]
[1644315949077,14.49590553,113.47,113.36,43.4514]
[1644315950899,13.26516036,113.47,113.36,43.4514]
[1644315951799,13.26516036,113.47,113.36,51.92767215]
[1644315951800,0.03966036,113.47,113.36,51.92767215]
[1644315951999,0.03966036,113.47,113.36,64.64767215]
[1644315952202,0.03966036,113.48,113.36,64.64767215]
[1644315954703,0.03966036,113.48,113.36,69.05567215]
[1644315955104,1.27040553,113.5,113.36,69.05567215]
[1644315955302,0.03966036,113.47,113.36,64.64767215]
[1644315955504,0.03966036,113.49,113.36,64.64767215]
[1644315957905,0.03966036,113.49,113.36,69.05567215]
[1644315959808,0.03966036,113.49,113.37,4.408]
[1644315960014,0.03966036,113.49,113.4,13.221]
[1644315960211,13.26116036,113.5,113.4,19.471]
[1644315962009,13.26116036,113.5,113.4,19.221]
[1644315962217,12.72,113.49,113.37,10.89301]
[1644315962512,13.2272,113.46,113.37,10.89301]
[1644315962912,13.26686036,113.46,113.37,4.407]
[1644315963110,13.2272,113.46,113.37,4.407]
[1644315963911,13.2272,113.46,113.36,13.2264]
[1644315964111,13.2272,113.46,113.36,19.2264]
[1644315964313,22.6242,113.46,113.36,19.2264]
[1644315964614,22.6242,113.46,113.36,6.0]
[1644315965015,22.6242,113.46,113.35,75.6179]
[1644315965413,23.85494517,113.46,113.35,75.6179]
[1644315965615,12.72,113.45,113.35,51.9886]
[1644315965813,13.2315,113.42,113.35,6.0]
[1644315966313,0.03966036,113.44,113.33,19.2299]
[1644315966711,0.03966036,113.44,113.33,19.4799]
[1644315967812,13.26886036,113.44,113.33,19.4799]
[1644315968412,13.26886036,113.44,113.33,19.2299]
[1644315968812,14.49960553,113.44,113.33,19.2299]
[1644315970615,14.49960553,113.44,113.33,19.4799]
[1644315971717,13.26886036,113.44,113.33,19.4799]
[1644315972517,14.49960553,113.44,113.33,19.4799]
[1644315972918,14.49960553,113.44,113.33,32.1999]
[1644315973118,1.27040553,113.44,113.36,13.2263]
[1644315973320,1.27040553,113.45,113.36,13.4763]
[1644315973520,1.23074517,113.45,113.36,19.4763]
[1644315974120,1.23074517,113.44,113.36,19.4763]
[1644315974719,1.23074517,113.44,113.36,19.2263]
[1644315974920,1.23074517,113.44,113.36,6.0]
[1644315975123,1.23074517,113.44,113.34,55.0988]
[1644315975325,1.23074517,113.44,113.34,42.3788]
[1644315975519,14.45894517,113.44,113.34,42.3788]
[1644315976323,1.23074517,113.43,113.34,42.3788]
[1644315976622,14.46084517,113.43,113.34,29.1503]
[1644315977024,1.23074517,113.42,113.34,29.1503]
[1644315977223,1.23074517,113.43,113.34,29.1503]
[1644315978825,13.2307,113.42,113.34,29.1503]
[1644315979226,13.2307,113.42,113.34,29.4003]
[1644315981826,13.2307,113.42,113.34,29.1503]
[1644315982025,14.46144517,113.42,113.34,29.1503]
[1644315988831,24.19844517,113.42,113.32,24.0729]
[1644315989033,13.95074517,113.41,113.3,48.96453001]
[1644315989232,13.2352,113.38,113.29,96.4857]
[1644315989431,13.2352,113.38,113.29,23.7705]
[1644315989432,22.1342,113.38,113.29,23.7705]
[1644315990233,23.36494517,113.38,113.29,23.7705]
[1644315993144,23.36494517,113.38,113.28,0.024]
[1644315993341,23.36494517,113.38,113.27,23.7114]
[1644315993642,13.2415,113.34,113.27,23.7114]
[1644315993843,21.2075,113.34,113.27,23.6874]
[1644315994841,13.2415,113.34,113.27,23.6874]
[1644315997642,13.2415,113.34,113.27,23.9374]
[1644315999874,13.2379,113.35,113.27,37.1758]
[1644316000465,13.95074517,113.38,113.27,39.16073001]
[1644316000668,1.23074517,113.38,113.27,45.16073001]
[1644316000865,37.9699,113.39,113.27,71.84239683]
[1644316001070,1.23074517,113.41,113.27,76.25239683]
[1644316001268,1.23074517,113.42,113.27,90.98555837]
[1644316001467,1.23074517,113.42,113.27,93.06728837]
[1644316001866,1.23074517,113.42,113.27,145.96728837]
[1644316002768,13.2309,113.41,113.27,145.96728837]
[1644316003169,13.2309,113.41,113.27,147.21792999]
[1644316004068,13.2309,113.41,113.28,4.41]